bitfinex-derivatives/quotes_SOLF0:USTF0_20260306
["timestamp","ask_amount","ask_price","bid_price","bid_amount"]
[1772828027704,9.75763647,85.061,85.024,10.585]
[1772828027897,3.79199667,85.065,85.024,10.585]
[1772828028100,9.75700546,85.064,85.024,10.585]
[1772828028296,9.75700546,85.063,85.024,10.585]
[1772828028500,3.79199667,85.065,85.024,10.585]
[1772828028501,9.75700546,85.062,85.024,10.585]
[1772828028703,9.75700546,85.062,85.017,3.80482257]
[1772828028704,7.41312888,85.06,85.017,14.39082257]
[1772828029006,3.79199667,85.058,85.017,14.39082257]
[1772828029906,3.79199667,85.058,85.023,10.585]
[1772828030807,3.62113221,85.07,85.03,10.585]
[1772828031112,9.75262993,85.069,85.031,3.80482257]
[1772828031299,9.75262993,85.068,85.031,3.80482257]
[1772828031504,9.75262993,85.067,85.031,3.80482257]
[1772828031705,3.79199667,85.076,85.031,3.80482257]
[1772828031706,9.75262993,85.066,85.031,3.80482257]
[1772828031905,3.79199667,85.076,85.032,10.584]
[1772828032107,9.75401703,85.075,85.031,3.80482257]
[1772828032308,9.75401703,85.074,85.031,3.80482257]
[1772828032508,9.75401703,85.073,85.032,10.584]
[1772828032709,9.75401703,85.072,85.032,10.584]
[1772828032910,9.75401703,85.071,85.032,10.584]
[1772828033111,9.75401703,85.07,85.032,10.584]
[1772828033312,9.75401703,85.069,85.032,10.584]
[1772828033509,9.75401703,85.068,85.032,10.584]
[1772828033712,9.75401703,85.067,85.032,10.584]
[1772828033911,3.62113221,85.07,85.032,10.584]
[1772828034212,9.75350161,85.069,85.032,10.584]
[1772828034412,9.75350161,85.068,85.031,3.80482257]
[1772828034612,9.75350161,85.067,85.031,3.80482257]
[1772828034811,3.79199667,85.069,85.031,3.80482257]
[1772828034812,9.75350161,85.066,85.031,3.80482257]
[1772828035113,9.75350161,85.065,85.031,3.80482257]
[1772828035315,9.75350161,85.064,85.031,3.80482257]
[1772828035509,3.79199667,85.069,85.031,3.80482257]
[1772828035712,9.75802431,85.068,85.031,3.80482257]
[1772828036013,9.75802431,85.067,85.031,3.80482257]
[1772828036216,9.75802431,85.066,85.034,10.584]
[1772828036416,3.79199667,85.069,85.034,10.584]
[1772828036610,9.75873598,85.068,85.034,10.584]
[1772828036810,9.75873598,85.067,85.034,10.584]
[1772828037116,9.75873598,85.066,85.034,10.584]
[1772828037316,3.79199667,85.069,85.034,10.584]
[1772828037615,3.62113221,85.08,85.035,3.86663588]
[1772828037812,9.75998285,85.079,85.035,3.86663588]
[1772828038012,9.75998285,85.078,85.035,3.86663588]
[1772828038212,9.75998285,85.077,85.04,3.86663588]
[1772828038409,9.75998285,85.076,85.041,3.86663588]
[1772828038715,9.75998285,85.075,85.041,3.86663588]
[1772828038917,9.75998285,85.074,85.041,3.86663588]
[1772828039212,3.81821745,85.082,85.041,3.86663588]
[1772828039416,9.76105998,85.081,85.041,3.86663588]
[1772828039615,9.76105998,85.08,85.041,3.86663588]
[1772828039819,9.76105998,85.079,85.042,10.583]
[1772828040113,9.76105998,85.078,85.042,10.583]
[1772828040312,9.76105998,85.077,85.042,10.583]
[1772828040612,9.76105998,85.076,85.045,3.86663588]
[1772828040814,9.76105998,85.075,85.045,3.86663588]
[1772828041013,3.62113221,85.1,85.059,3.86663588]
[1772828041317,9.76102529,85.099,85.059,3.86663588]
[1772828041511,9.76102529,85.098,85.059,3.86663588]
[1772828041713,9.76102529,85.097,85.065,10.58]
[1772828041918,9.76102529,85.096,85.066,3.72090763]
[1772828042117,3.81821745,85.108,85.066,3.72090763]
[1772828042318,9.75844135,85.107,85.066,3.72090763]
[1772828042508,3.62113221,85.11,84.966,201.18900394]
[1772828042509,3.961415,85.099,85.041,3.72090763]
[1772828042711,9.75844135,85.106,85.041,3.72090763]
[1772828042712,3.961415,85.089,85.041,3.72090763]
[1772828042917,3.62113221,85.08,85.041,3.72090763]
[1772828043317,3.62113221,85.08,85.041,14.30390763]
[1772828043516,3.961415,85.087,85.042,3.72090763]
[1772828043717,9.7488488,85.086,85.042,3.72090763]
[1772828043917,9.7488488,85.085,85.042,3.72090763]
[1772828044116,9.7488488,85.084,85.042,3.72090763]
[1772828044317,3.961415,85.087,85.042,3.72090763]
[1772828044615,3.961415,85.079,84.99,3.72090763]
[1772828044921,9.7467744,85.078,85.021,3.72090763]
[1772828045217,9.7467744,85.077,85.021,3.72090763]
[1772828045413,9.7467744,85.076,85.021,3.72090763]
[1772828045718,9.7467744,85.075,85.021,3.72090763]
[1772828045912,3.961415,85.079,85.021,3.72090763]
[1772828046110,9.74422451,85.078,85.032,3.72090763]
[1772828046307,9.74422451,85.077,85.032,3.72090763]
[1772828046514,9.74422451,85.076,85.032,3.72090763]
[1772828046716,9.74422451,85.075,85.033,10.584]
[1772828046918,14.540415,85.079,85.033,10.584]
[1772828047118,9.74418958,85.078,85.033,10.584]
[1772828047320,14.540415,85.079,85.033,10.584]
[1772828047321,9.74418958,85.077,85.033,10.584]
[1772828047519,20.32318958,85.076,85.033,14.30490763]
[1772828047718,9.74418958,85.075,85.033,14.30490763]
[1772828048017,9.74418958,85.074,85.033,14.30490763]
[1772828048219,9.74731477,85.073,85.033,14.30490763]
[1772828048409,10.579,85.076,85.033,14.30490763]
[1772828048615,9.74731477,85.075,85.033,14.30490763]
[1772828048919,9.74731477,85.074,85.033,14.30490763]
[1772828049122,9.74731477,85.073,85.033,14.30490763]
[1772828049316,3.961415,85.079,85.033,14.30490763]
[1772828049621,9.74942412,85.078,85.033,3.72090763]
[1772828049920,9.74767624,85.077,85.033,3.72090763]
[1772828050122,9.74767624,85.076,85.033,3.72090763]
[1772828050322,3.961415,85.074,85.033,3.72090763]
[1772828050523,9.74767624,85.073,85.04,10.583]
[1772828050826,3.961415,85.074,85.04,10.583]
[1772828051023,9.75007016,85.073,85.04,10.583]
[1772828051224,9.75279587,85.072,85.04,10.583]
[1772828051423,9.75279587,85.072,85.033,3.72090763]
[1772828051424,3.961415,85.074,85.033,3.72090763]
[1772828051624,9.75177333,85.073,85.033,3.72090763]
[1772828051821,9.75177333,85.072,85.033,3.72090763]
[1772828052022,3.961415,85.079,85.033,3.72090763]
[1772828052221,3.961415,85.069,85.02,3.72090763]
[1772828052425,3.961415,85.059,85.02,3.72090763]
[1772828052924,21.66260883,85.1,85.02,3.72090763]
[1772828052925,3.62113221,85.07,85.021,3.72090763]
[1772828053126,9.75575848,85.069,85.021,3.72090763]
[1772828053328,9.75575848,85.068,85.021,3.72090763]
[1772828053527,9.75575848,85.068,84.951,177.0]
[1772828053528,14.82126301,85.089,85.041,3.72090763]
[1772828053728,9.75699839,85.088,85.041,3.72090763]
[1772828053925,9.75699839,85.087,85.041,3.72090763]
[1772828054131,9.75699839,85.086,85.041,3.72090763]
[1772828054429,9.75699839,85.085,85.041,3.72090763]
[1772828054626,3.961415,85.089,85.041,3.72090763]
[1772828054827,9.75712728,85.088,85.05,10.582]
[1772828055025,9.75712728,85.087,85.05,10.582]
[1772828055226,3.961415,85.085,85.041,3.72090763]
[1772828055426,3.961415,85.085,85.007,21.175]
[1772828055427,3.961415,85.079,85.021,3.72090763]
[1772828055626,3.961415,85.077,85.03,3.72090763]
[1772828055830,9.75712728,85.076,85.03,3.72090763]
[1772828056021,3.62113221,85.07,85.035,10.584]
[1772828056228,3.961415,85.069,85.03,3.72090763]
[1772828056637,3.961415,85.069,85.031,10.584]
[1772828060636,3.961415,85.059,85.013,3.72090763]
[1772828061634,9.7499912,85.058,85.013,3.72090763]
[1772828061845,3.62113221,85.05,85.013,3.72090763]
[1772828062433,9.7504148,85.049,85.016,10.586]
[1772828062633,3.62113221,85.05,85.013,3.72090763]
[1772828062835,3.62113221,85.04,84.991,3.72090763]
[1772828063132,13.71087266,85.049,84.991,3.72090763]
[1772828063133,3.62113221,85.03,85.0,10.588]
[1772828063326,3.62113221,85.02,84.991,3.72090763]
[1772828063530,3.961415,85.029,84.991,3.72090763]
[1772828064733,3.961415,85.029,85.0,10.588]
[1772828067733,3.961415,85.029,84.993,10.589]
[1772828068535,3.961415,85.055,84.991,3.72090763]
[1772828068740,3.961415,85.055,85.011,3.72090763]
[1772828068940,3.961415,85.068,85.011,3.72090763]
[1772828069141,13.6895889,85.067,85.011,3.72090763]
[1772828069343,9.7281739,85.066,85.011,3.72090763]
[1772828069535,9.7281739,85.065,85.011,3.72090763]
[1772828069741,9.7281739,85.064,85.021,3.72090763]
[1772828070041,3.961415,85.067,85.021,3.72090763]
[1772828070236,9.72870431,85.066,85.021,3.72090763]
[1772828070436,9.72870431,85.065,85.021,3.72090763]
[1772828070633,9.72870431,85.064,85.021,3.72090763]
[1772828070836,3.961415,85.065,85.028,10.585]
[1772828071035,9.72859888,85.064,85.028,10.585]
[1772828071339,3.961415,85.065,85.028,10.585]
[1772828071642,9.72852418,85.064,85.028,10.585]
[1772828071838,3.961415,85.065,85.028,10.585]
[1772828072247,3.961415,85.065,85.037,10.584]
[1772828072741,3.961415,85.065,85.021,3.72090763]
[1772828073742,3.77585902,85.079,85.03,3.62113221]
[1772828074043,9.72970502,85.078,85.041,3.6353919]
[1772828074236,3.77585902,85.079,85.03,3.62113221]
[1772828074437,3.62113221,85.08,85.03,3.62113221]
[1772828074438,3.77585902,85.077,85.03,10.585]
[1772828074636,9.73009779,85.076,85.03,10.585]
[1772828074842,3.77585902,85.077,85.03,10.585]
[1772828075042,13.50608318,85.076,85.03,10.585]
[1772828075245,3.77585902,85.076,85.036,10.584]
[1772828078050,3.77585902,85.076,85.03,3.6353919]
[1772828078353,3.77585902,85.091,85.03,3.6353919]
[1772828078552,3.77585902,85.089,85.03,3.6353919]
[1772828078752,3.77585902,85.087,85.03,3.6353919]
[1772828078951,3.77585902,85.085,85.03,3.6353919]
[1772828079147,3.77585902,85.083,85.03,3.6353919]
[1772828079353,3.77585902,85.081,85.03,3.6353919]
[1772828079651,9.72955244,85.08,85.03,3.6353919]
[1772828079852,9.72955244,85.079,85.034,10.584]
[1772828080054,9.72955244,85.078,85.034,10.584]
[1772828080256,9.72955244,85.077,85.034,10.584]
[1772828080560,3.77585902,85.075,85.03,3.6353919]
[1772828080756,9.72955244,85.074,85.03,3.6353919]
[1772828080954,9.72955244,85.073,85.03,3.6353919]
[1772828081255,3.77585902,85.075,85.03,3.6353919]
[1772828081454,9.72949848,85.074,85.03,3.6353919]
[1772828081656,9.72949848,85.073,85.03,3.6353919]
[1772828081851,3.77585902,85.071,84.989,3.6353919]
[1772828082058,3.77585902,85.069,84.989,3.6353919]
[1772828082260,3.77585902,85.069,85.024,10.585]
[1772828083155,3.77585902,85.067,85.024,10.585]
[1772828084555,3.77585902,85.067,85.03,10.584]
[1772828085361,3.77585902,85.081,85.039,10.583]
[1772828085556,9.72913814,85.08,85.039,10.583]
[1772828085859,3.77585902,85.078,85.031,3.6353919]
[1772828086059,3.77585902,85.076,85.031,3.6353919]
[1772828086362,3.77585902,85.074,85.032,10.584]
[1772828086562,13.50499716,85.073,85.032,10.584]
[1772828086761,9.72913814,85.072,85.032,10.584]
[1772828086962,9.72913814,85.071,85.032,10.584]
[1772828087158,9.72913814,85.07,85.032,10.584]
[1772828087357,9.72913814,85.069,85.032,10.584]
[1772828087660,3.77585902,85.073,85.032,10.584]
[1772828087860,9.73232631,85.072,85.039,10.583]
[1772828088062,9.73232631,85.071,85.039,10.583]
[1772828088261,9.73232631,85.07,85.039,10.583]
[1772828088559,9.73308854,85.069,85.039,10.583]
[1772828088755,13.50852543,85.068,85.032,10.584]
[1772828088958,3.77585902,85.066,84.991,3.6353919]
[1772828089161,9.71769718,85.065,84.991,3.6353919]
[1772828089361,9.71769718,85.064,84.991,3.6353919]
[1772828089661,13.4935562,85.063,84.991,3.6353919]
[1772828089955,13.4935562,85.062,85.016,3.6353919]
[1772828090157,3.77585902,85.062,85.016,3.6353919]
[1772828090665,3.77585902,85.062,85.034,10.584]
[1772828100071,3.77585902,85.062,85.027,3.6353919]
[1772828100669,3.96018661,85.073,85.027,3.6353919]
[1772828100875,3.96018661,85.084,85.027,3.6353919]
[1772828101176,3.96018661,85.082,85.027,3.6353919]
[1772828101376,3.96018661,85.08,85.027,3.6353919]
[1772828101672,3.96018661,85.078,85.027,3.6353919]
[1772828101975,3.66373949,85.075,84.991,3.99603118]
[1772828102176,3.66373949,85.072,84.991,3.99603118]
[1772828102365,3.66373949,85.07,85.032,10.584]
[1772828102568,9.70567243,85.069,85.032,3.99603118]
[1772828102774,9.70567243,85.068,85.032,3.99603118]
[1772828102977,9.70567243,85.067,85.032,3.99603118]
[1772828103170,9.70567243,85.066,85.032,3.99603118]
[1772828103372,13.36861206,85.065,84.993,3.99603118]
[1772828103569,3.66373949,85.077,84.995,3.99603118]
[1772828103878,9.70633924,85.076,85.02,3.99603118]
[1772828104074,3.66373949,85.077,85.02,3.99603118]
[1772828104075,9.70633924,85.075,85.02,3.99603118]
[1772828104272,9.70633924,85.074,85.02,3.99603118]
[1772828104468,3.66373949,85.09,85.04,3.99603118]
[1772828104673,3.66373949,85.088,85.04,3.99603118]
[1772828104874,3.66373949,85.086,85.025,3.99603118]
[1772828105176,3.66373949,85.083,85.025,14.58103118]
[1772828105376,3.66373949,85.081,85.025,3.99603118]
[1772828105576,3.66373949,85.079,85.025,3.99603118]
[1772828105772,3.66373949,85.077,84.979,3.99603118]
[1772828105974,3.66373949,85.073,84.979,3.99603118]
[1772828106180,3.66373949,85.071,84.979,3.99603118]
[1772828106372,3.66373949,85.069,84.979,3.99603118]
[1772828106573,3.66373949,85.067,84.979,3.99603118]
[1772828106772,3.66373949,85.065,85.016,10.586]
[1772828107076,3.66373949,85.063,84.979,3.99603118]
[1772828107275,3.66373949,85.061,84.979,3.99603118]
[1772828107476,3.66373949,85.059,84.979,3.99603118]
[1772828107667,3.66373949,85.057,84.991,3.99603118]
[1772828107875,3.66373949,85.055,84.991,3.99603118]
[1772828108077,3.66373949,85.053,84.991,3.99603118]
[1772828108378,3.66373949,85.051,85.004,10.588]
[1772828108579,3.66373949,85.049,84.991,3.99603118]
[1772828108774,3.66373949,85.047,85.003,14.58403118]
[1772828108975,9.70443687,85.046,85.003,14.58403118]
[1772828109172,3.66373949,85.047,85.004,3.99603118]
[1772828109373,9.70368949,85.046,85.004,3.99603118]
[1772828109679,9.70368949,85.045,85.004,3.99603118]
[1772828109874,3.66373949,85.047,85.005,14.58403118]
[1772828110079,9.7015642,85.046,85.005,14.58403118]
[1772828110280,9.7015642,85.045,85.005,14.58403118]
[1772828110578,9.7015642,85.044,85.005,14.58403118]
[1772828110775,3.66373949,85.047,85.005,14.58403118]
[1772828110980,9.70584796,85.046,85.005,14.58403118]
[1772828111181,9.70584796,85.045,85.005,14.58403118]
[1772828111378,9.70584796,85.044,85.005,14.58403118]
[1772828111678,9.70584796,85.043,85.005,14.58403118]
[1772828111880,3.66373949,85.042,84.997,10.589]
[1772828112277,3.66373949,85.035,84.988,10.59]
[1772828112472,3.66373949,85.033,84.988,10.59]
[1772828112673,3.66373949,85.031,84.988,10.59]
[1772828112871,3.66373949,85.029,84.988,10.59]
[1772828113079,9.71048122,85.028,84.988,10.59]
[1772828113279,9.71048122,85.027,84.988,10.59]
[1772828113479,3.66373949,85.029,84.988,10.59]
[1772828113682,9.70846657,85.028,84.988,10.59]
[1772828113982,9.70846657,85.027,84.994,10.589]
[1772828114280,3.66373949,85.029,84.994,10.589]
[1772828116087,3.66373949,85.029,84.986,10.59]
[1772828116281,3.66373949,85.029,84.986,14.58603118]
[1772828116888,3.66373949,85.029,84.99,10.589]
[1772828117090,3.66373949,85.053,84.991,3.99603118]
[1772828117291,3.66373949,85.051,84.991,3.99603118]
[1772828117788,3.66373949,85.049,85.007,3.99603118]
[1772828118580,3.66373949,85.07,85.018,10.586]
[1772828118790,3.66373949,85.068,85.007,3.99603118]
[1772828119089,3.66373949,85.066,85.017,10.586]
[1772828119285,10.579,85.072,85.017,10.586]
[1772828119286,3.66373949,85.064,85.017,10.586]
[1772828119485,3.66373949,85.062,85.017,10.586]
[1772828119686,3.66373949,85.06,85.017,10.586]
[1772828119886,3.66373949,85.058,85.017,10.586]
[1772828120089,9.70597932,85.057,85.017,10.586]
[1772828120283,9.70597932,85.056,85.017,10.586]
[1772828120489,9.70597932,85.055,85.017,10.586]
[1772828120692,3.66373949,85.058,85.017,10.586]
[1772828120990,9.68869337,85.057,85.017,10.586]
[1772828121182,9.68869337,85.056,85.023,10.585]
[1772828121381,10.85578606,85.078,85.019,3.99603118]
[1772828121382,3.66373949,85.078,85.019,3.99603118]
[1772828121586,9.69170365,85.077,85.019,3.99603118]
[1772828121889,9.69170365,85.076,85.019,3.99603118]
[1772828122090,9.69170365,85.075,85.036,3.99603118]
[1772828122291,9.69170365,85.074,85.036,3.99603118]
[1772828122491,9.69170365,85.073,85.036,3.99603118]
[1772828122690,9.69170365,85.072,85.036,3.99603118]
[1772828122889,3.66373949,85.078,85.036,3.99603118]
[1772828123089,9.69515506,85.077,85.036,3.99603118]
[1772828123289,9.69515506,85.076,85.036,3.99603118]
[1772828123490,9.69515506,85.075,85.036,3.99603118]
[1772828123795,9.69515506,85.074,85.037,3.99603118]
[1772828123992,9.69515506,85.073,85.037,3.99603118]
[1772828124294,10.85578606,85.09,85.024,10.585]
[1772828124295,3.66373949,85.071,85.024,10.585]
[1772828124495,3.66373949,85.069,84.984,3.99603118]
[1772828124687,3.66373949,85.067,84.984,3.99603118]
[1772828124888,3.66373949,85.065,85.021,10.586]
[1772828125088,13.35889455,85.064,85.021,10.586]
[1772828125394,13.35889455,85.063,85.021,10.586]
[1772828125596,9.69515506,85.062,85.021,10.586]
[1772828125889,9.69515506,85.061,85.021,10.586]
[1772828126095,9.69515506,85.06,85.021,10.586]
[1772828126293,9.69515506,85.059,85.021,10.586]
[1772828126496,9.69515506,85.058,85.021,10.586]
[1772828126694,9.69515506,85.057,85.021,10.586]
[1772828126896,3.66373949,85.055,85.004,3.99603118]
[1772828127190,3.66373949,85.053,85.004,3.99603118]
[1772828127391,3.66373949,85.049,85.004,3.99603118]
[1772828127696,3.66373949,85.047,85.004,3.99603118]
[1772828127897,13.35889455,85.046,85.004,3.99603118]
[1772828128088,9.69515506,85.045,85.004,3.99603118]
[1772828128295,9.69515506,85.044,85.004,3.99603118]
[1772828128497,9.68947066,85.043,85.004,3.99603118]
[1772828128699,3.66373949,85.046,85.004,3.99603118]
[1772828128901,9.68947066,85.045,85.004,3.99603118]
[1772828129196,3.66373949,85.046,85.004,3.99603118]
[1772828129197,9.68947066,85.044,85.004,3.99603118]
[1772828129393,9.68947066,85.043,85.004,3.99603118]
[1772828129701,9.68947066,85.042,85.004,3.99603118]
[1772828129896,3.66373949,85.046,85.004,3.99603118]
[1772828130195,9.68908039,85.045,85.004,3.99603118]
[1772828130394,9.68908039,85.044,85.004,3.99603118]
[1772828130697,9.68908039,85.043,85.004,3.99603118]
[1772828130898,9.68908039,85.042,85.004,3.99603118]
[1772828131102,3.66373949,85.046,85.004,3.99603118]
[1772828131402,9.68738164,85.045,85.011,10.587]
[1772828131596,3.66373949,85.043,85.004,3.99603118]
[1772828131896,9.68738164,85.042,85.004,3.99603118]
[1772828132092,3.66373949,85.043,85.004,3.99603118]
[1772828132398,9.68501701,85.042,85.004,3.99603118]
[1772828132595,9.68501701,85.041,85.004,3.99603118]
[1772828132795,9.68501701,85.04,85.004,3.99603118]
[1772828132993,13.43539095,85.039,84.974,3.95947009]
[1772828133298,21.66260883,85.078,84.974,3.95947009]
[1772828133299,3.75215701,85.037,84.974,3.95947009]
[1772828133503,3.75215701,85.037,84.973,283.18646884]
[1772828133504,9.68323394,85.036,84.995,10.589]
[1772828133797,3.75215701,85.034,84.99,3.95947009]
[1772828133993,3.75215701,85.032,84.992,10.589]
[1772828137297,3.75215701,85.032,84.972,3.95947009]
[1772828137498,3.75215701,85.03,84.972,3.95947009]
[1772828137698,3.75215701,85.028,84.972,3.95947009]
[1772828137897,10.85578606,85.039,84.972,3.95947009]
[1772828137898,3.75215701,85.026,84.987,10.59]
[1772828138098,14.44173922,85.051,84.945,21.191]
[1772828138099,3.75215701,85.024,84.96,3.95947009]
[1772828138298,3.75215701,85.022,84.96,3.95947009]
[1772828138498,3.75215701,85.02,84.96,3.95947009]
[1772828138699,3.75215701,85.018,84.96,3.95947009]
[1772828138900,3.75215701,85.016,84.96,3.95947009]
[1772828139201,3.75215701,85.012,84.964,10.593]
[1772828139401,3.75215701,85.01,84.964,10.593]
[1772828139703,3.75215701,85.008,84.964,10.593]
[1772828141007,3.75215701,85.006,84.957,10.594]
[1772828141306,3.75215701,85.004,84.93,3.95947009]
[1772828141501,3.75215701,85.004,84.971,10.592]
[1772828141903,3.75215701,85.004,84.948,3.95947009]
[1772828142109,3.75215701,85.004,84.953,10.594]
[1772828142608,3.75215701,85.004,84.928,3.95947009]
[1772828143012,3.75215701,85.001,84.95,10.594]
[1772828144010,3.75215701,85.001,84.927,202.06499649]
[1772828144011,3.75215701,85.001,84.957,10.594]
[1772828144601,3.75215701,85.001,84.946,10.595]
[1772828144802,3.75215701,85.001,84.931,3.95947009]
[1772828145110,3.75215701,84.999,84.938,10.596]
[1772828145311,9.65411092,84.998,84.918,3.95947009]
[1772828145506,3.75215701,84.996,84.918,3.95947009]
[1772828145708,3.75215701,84.994,84.918,3.95947009]
[1772828145904,3.75215701,84.992,84.936,10.596]
[1772828146211,3.75215701,84.99,84.937,3.95947009]
[1772828147312,3.75215701,84.99,84.951,10.594]
[1772828149410,3.75215701,85.004,84.952,3.95947009]
[1772828149605,3.75215701,85.004,84.954,14.55347009]
[1772828149812,3.75215701,85.004,84.954,3.95947009]
[1772828153810,3.75215701,85.004,84.956,3.95947009]
[1772828155010,3.75215701,85.004,84.963,10.593]
[1772828155719,3.75215701,85.004,84.955,10.594]
[1772828155909,3.75215701,85.004,84.955,14.55347009]
[1772828156109,3.75215701,85.004,84.964,10.593]
[1772828156307,3.85415206,85.027,84.964,3.6407453]
[1772828156511,3.85415206,85.025,84.964,3.6407453]
[1772828156712,3.85415206,85.023,84.964,3.6407453]
[1772828157812,3.85415206,85.023,84.971,10.592]
[1772828160307,10.584,85.034,84.977,3.6407453]
[1772828160505,9.63586399,85.033,84.977,3.6407453]
[1772828160710,9.63586399,85.032,84.977,3.6407453]
[1772828161013,9.63586399,85.031,84.977,3.6407453]
[1772828161312,3.85415206,85.029,84.977,3.6407453]
[1772828161512,13.49001605,85.028,84.977,3.6407453]
[1772828161715,9.63586399,85.027,84.977,3.6407453]
[1772828161913,3.85415206,85.028,84.983,10.59]
[1772828162110,9.63694517,85.027,84.983,10.59]
[1772828162312,3.85415206,85.028,84.984,3.62991174]
[1772828162513,3.81448412,85.043,84.987,3.62991174]
[1772828162713,3.81448412,85.056,84.987,3.62991174]
[1772828162909,3.81448412,85.054,84.987,3.62991174]
[1772828163111,3.81448412,85.046,84.981,3.62991174]
[1772828163305,3.81448412,85.044,84.981,3.62991174]
[1772828163510,3.81448412,85.042,84.981,3.62991174]
[1772828163713,3.81448412,85.04,84.981,3.62991174]
[1772828164017,3.81448412,85.038,84.981,3.62991174]
[1772828164314,3.81448412,85.036,84.981,3.62991174]
[1772828164615,3.81448412,85.034,84.981,3.62991174]
[1772828164814,3.81448412,85.028,84.981,3.62991174]
[1772828165006,3.81448412,85.028,84.936,3.62991174]
[1772828165207,3.81448412,85.026,84.936,3.62991174]
[1772828165815,3.81448412,85.025,84.97,3.62991174]
[1772828166318,3.81448412,85.041,84.97,3.62991174]
[1772828166511,3.81448412,85.041,84.994,14.21891174]
[1772828166717,3.81448412,85.041,84.995,3.62991174]
[1772828167217,9.65152686,85.04,84.995,3.62991174]
[1772828167516,13.46690127,85.039,84.995,3.62991174]
[1772828167717,3.81448412,85.037,84.995,3.62991174]
[1772828167914,3.81448412,85.036,84.995,3.62991174]
[1772828168613,9.65674509,85.035,84.995,3.62991174]
[1772828168916,9.65674509,85.034,84.995,3.62991174]
[1772828169209,9.65674509,85.033,84.995,3.62991174]
[1772828169414,9.65674509,85.032,84.995,3.62991174]
[1772828169607,9.65674509,85.031,84.995,3.62991174]
[1772828169807,3.81448412,85.029,84.986,3.62991174]
[1772828170017,3.81448412,85.027,84.986,3.62991174]
[1772828170313,3.81448412,85.025,84.986,3.62991174]
[1772828170513,13.47546056,85.024,84.986,3.62991174]
[1772828170814,3.81448412,85.024,84.981,10.591]
[1772828171014,3.81448412,85.024,84.973,3.62991174]
[1772828171317,3.81448412,85.043,84.973,3.62991174]
[1772828171516,3.81448412,85.041,84.973,3.62991174]
[1772828171708,3.81448412,85.039,84.973,3.62991174]
[1772828172014,14.39848412,85.035,84.987,10.59]
[1772828172214,3.81448412,85.033,84.987,10.59]
[1772828172415,9.67008248,85.032,84.987,10.59]
[1772828172615,9.67008248,85.031,84.987,10.59]
[1772828172816,9.67008248,85.03,84.987,10.59]
[1772828173117,9.67008248,85.029,84.987,10.59]
[1772828173416,9.67008248,85.028,84.988,3.62991174]
[1772828173614,9.67008248,85.027,84.988,3.62991174]
[1772828173911,9.67008248,85.026,84.99,3.62991174]
[1772828174112,3.81448412,85.033,84.99,3.62991174]
[1772828174311,9.67294556,85.032,84.99,3.62991174]
[1772828174512,9.67294556,85.031,84.99,3.62991174]
[1772828174713,9.67294556,85.03,84.99,3.62991174]
[1772828174912,3.81448412,85.033,84.996,10.589]
[1772828175214,3.81448412,85.033,84.99,3.62991174]
[1772828175215,3.81448412,85.031,84.99,3.62991174]
[1772828175415,3.81448412,85.029,84.991,10.589]
[1772828175615,3.81448412,85.029,84.99,3.62991174]
[1772828176212,3.81448412,85.043,84.997,3.62991174]
[1772828176417,3.81448412,85.041,84.997,3.62991174]
[1772828176618,13.49210517,85.04,84.997,3.62991174]
[1772828176809,9.67762105,85.039,84.997,3.62991174]
[1772828177008,3.81448412,85.037,84.997,3.62991174]
[1772828177211,9.67762105,85.036,84.997,3.62991174]
[1772828177417,9.67762105,85.035,84.997,3.62991174]
[1772828177717,9.67762105,85.034,84.997,3.62991174]
[1772828177919,9.67762105,85.033,84.998,10.588]
[1772828178219,9.67762105,85.032,84.998,10.588]
[1772828178425,3.81448412,85.037,84.998,10.588]
[1772828178718,9.67788707,85.036,84.998,10.588]
[1772828178919,9.67788707,85.035,84.998,10.588]
[1772828179216,3.81448412,85.033,84.984,3.62991174]
[1772828179519,3.81448412,85.031,84.984,3.62991174]
[1772828179816,3.81448412,85.043,84.994,3.62991174]
[1772828180017,3.81448412,85.041,84.994,3.62991174]
[1772828180320,9.67555144,85.04,84.994,3.62991174]
[1772828180519,9.67555144,85.039,84.994,3.62991174]
[1772828180813,9.67555144,85.038,84.994,3.62991174]
[1772828181010,9.67555144,85.037,84.994,3.62991174]
[1772828181214,9.67555144,85.036,84.994,3.62991174]
[1772828181419,9.67555144,85.035,85.002,3.62991174]
[1772828181610,322.90322218,85.054,85.002,3.62991174]
[1772828181810,9.67770501,85.053,85.002,3.62991174]
[1772828182018,9.67770501,85.052,85.011,3.62991174]
[1772828182220,3.81448412,85.069,85.011,3.62991174]
[1772828182414,9.67835664,85.068,85.019,10.586]
[1772828182620,3.81448412,85.066,85.02,3.62991174]